lending/lending_fUSD_20260206
["ID","MTS","AMOUNT","RATE_DAILY","PERIOD"]
[404658711,1770389442892,-500.0,0.00013698,2]
[404658712,1770389442901,-500.0,0.00013698,2]
[404658713,1770389442911,-500.0,0.00013698,2]
[404658714,1770389442921,-500.0,0.00013698,2]
[404658715,1770389442931,-500.0,0.00013698,2]
[404658716,1770389442940,-500.0,0.00013698,2]
[404658717,1770389442955,-500.0,0.00013698,2]
[404658718,1770389442967,-500.0,0.00013698,2]
[404658719,1770389442977,-202.70654952,0.00013698,2]
[404658720,1770389442987,-500.0,0.00013698,2]
[404658721,1770389442997,-500.0,0.00013698,2]
[404658722,1770389443007,-500.0,0.00013698,2]
[404658723,1770389443017,-500.0,0.00013698,2]
[404658724,1770389443027,-500.0,0.00013698,2]
[404658725,1770389443037,-500.0,0.00013698,2]
[404658726,1770389443046,-500.0,0.00013698,2]
[404658727,1770389443056,-500.0,0.00013698,2]
[404658728,1770389443066,-500.0,0.00013698,2]
[404658729,1770389443076,-500.0,0.00013698,2]
[404658730,1770389443085,-500.0,0.00013698,2]
[404658731,1770389443095,-179.76637926,0.00013698,2]
[404658732,1770389443105,-594.94429207,0.00013698,2]
[404658733,1770389443114,-500.0,0.00013698,2]
[404658734,1770389443123,-500.0,0.00013698,2]
[404658735,1770389443134,-500.0,0.00013698,2]
[404658736,1770389443143,-500.0,0.00013698,2]
[404658737,1770389443153,-508.97591607,0.00013698,2]
[404658738,1770389443163,-500.0,0.00013698,2]
[404658739,1770389443172,-500.0,0.00013698,2]
[404658740,1770389443182,-500.0,0.00013698,2]
[404658741,1770389443191,-500.0,0.00013698,2]
[404658742,1770389443206,-500.0,0.00013698,2]
[404658743,1770389443216,-500.0,0.00013698,2]
[404658744,1770389443226,-500.0,0.00013698,2]
[404658745,1770389443237,-500.0,0.00013698,2]
[404658746,1770389443247,-500.0,0.00013698,2]
[404658747,1770389443257,-500.0,0.00013698,2]
[404658748,1770389443267,-500.0,0.00013698,2]
[404658749,1770389443277,-500.0,0.00013698,2]
[404658750,1770389443287,-449.78062316,0.00013698,2]
[404658751,1770389443297,-500.0,0.00013698,2]
[404658752,1770389443307,-500.0,0.00013698,2]
[404658753,1770389443318,-500.0,0.00013698,2]
[404658754,1770389443329,-500.0,0.00013698,2]
[404658755,1770389443339,-500.0,0.00013698,2]
[404658756,1770389443350,-500.0,0.00013698,2]
[404658757,1770389443361,-500.0,0.00013698,2]
[404658758,1770389443372,-500.0,0.00013698,2]
[404658759,1770389443383,-258.90808423,0.00013698,2]
[404658760,1770389443393,-500.0,0.00013698,2]
[404658761,1770389443404,-500.0,0.00013698,2]
[404658762,1770389443418,-500.0,0.00013698,2]
[404658763,1770389443429,-500.0,0.00013698,2]
[404658764,1770389443439,-500.0,0.00013698,2]
[404658765,1770389443460,-500.0,0.00013698,2]
[404658766,1770389443470,-412.65185356,0.00013698,2]
[404658767,1770389443481,-500.0,0.00013698,2]
[404658768,1770389443491,-500.0,0.00013698,2]
[404658769,1770389443501,-500.0,0.00013698,2]
[404658770,1770389443512,-500.0,0.00013698,2]
[404658771,1770389443522,-500.0,0.00013698,2]
[404658772,1770389443532,-500.0,0.00013698,2]
[404658773,1770389443542,-500.0,0.00013698,2]
[404658774,1770389443552,-415.73037417,0.00013698,2]
[404658775,1770389443563,-12300.39,0.00013699,2]
[404658776,1770389443573,-500.0,0.00013699,2]
[404658777,1770389443583,-500.0,0.00013699,2]
[404658778,1770389443593,-500.0,0.00013699,2]
[404658779,1770389443603,-500.0,0.00013699,2]
[404658780,1770389443614,-500.0,0.00013699,2]
[404658781,1770389443624,-500.0,0.00013699,2]
[404658782,1770389443634,-336.69368124,0.00013699,2]
[404658783,1770389443643,-500.0,0.00013699,2]
[404658784,1770389443653,-500.0,0.00013699,2]
[404658785,1770389443663,-500.0,0.00013699,2]
[404658786,1770389443673,-500.0,0.00013699,2]
[404658787,1770389443683,-500.0,0.00013699,2]
[404658788,1770389443692,-500.0,0.00013699,2]
[404658789,1770389443708,-500.0,0.00013699,2]
[404658790,1770389443718,-163.54605001,0.00013699,2]
[404658791,1770389443728,-500.0,0.00013699,2]
[404658792,1770389443738,-160.30953248,0.00013699,2]
[404658793,1770389443747,-161.31179741,0.00013699,2]
[404658794,1770389443757,-500.0,0.00013699,2]
[404658795,1770389443767,-160.2958591,0.00013699,2]
[404658797,1770389443776,-375.67609923,0.00013699,2]
[404658799,1770389443785,-500.0,0.00013699,2]
[404658801,1770389443795,-500.0,0.00013699,2]
[404658802,1770389443804,-500.0,0.00013699,2]
[404658804,1770389443814,-500.0,0.00013699,2]
[404658805,1770389443823,-500.0,0.00013699,2]
[404658806,1770389443832,-160.2877844,0.00013699,2]
[404658807,1770389443842,-160.15635093,0.00013699,2]
[404658808,1770389443851,-160.32039797,0.00013699,2]
[404658809,1770389443861,-500.0,0.00013699,2]
[404658810,1770389443871,-210.66177854,0.00013699,2]
[404658811,1770389443880,-209.02572432,0.00013699,2]
[404658812,1770389443890,-166.0853279,0.00013699,2]
[404658813,1770389443899,-169.88158965,0.00013699,2]
[404658814,1770389443908,-309.57278737,0.00013699,2]
[404658816,1770389443918,-164.9289209,0.00013699,2]
[404658818,1770389443928,-500.0,0.00013699,2]
[404658820,1770389443938,-162.83273064,0.00013699,2]
[404658821,1770389443951,-284.7052867,0.00013699,2]
[404658822,1770389443961,-161.37674541,0.00013699,2]
[404658823,1770389443971,-377.06349789,0.00013699,2]
[404658824,1770389443980,-500.0,0.00013699,2]
[404658825,1770389443990,-500.27802056,0.00013699,2]
[404658826,1770389444000,-500.0,0.00013699,2]
[404658827,1770389444009,-509.82706039,0.00013699,2]
[404658828,1770389444017,-500.0,0.00013699,2]
[404658829,1770389444026,-500.0,0.00013699,2]
[404658830,1770389444036,-512.85113697,0.00013699,2]
[404658831,1770389444045,-162.26818881,0.00013699,2]
[404658832,1770389444055,-500.0,0.00013699,2]
[404658833,1770389444064,-160.64524399,0.00013699,2]
[404658834,1770389444074,-161.65464171,0.00013699,2]
[404658835,1770389444083,-500.0,0.00013699,2]
[404658836,1770389444093,-500.0,0.00013699,2]
[404658837,1770389444102,-500.0,0.00013699,2]
[404658838,1770389444111,-162.09631962,0.00013699,2]
[404658839,1770389444121,-157.67285864,0.00013699,2]
[404658840,1770389444131,-500.0,0.00013699,2]
[404658841,1770389444141,-500.0,0.00013699,2]
[404658842,1770389444151,-500.0,0.00013699,2]
[404658843,1770389444160,-471.95561661,0.00013699,2]
[404658844,1770389444170,-500.92046263,0.00013699,2]
[404658845,1770389444179,-161.5738126,0.00013699,2]
[404658846,1770389444189,-500.0,0.00013699,2]
[404658847,1770389444200,-500.0,0.00013699,2]
[404658848,1770389444210,-166.7812397,0.00013699,2]
[404658849,1770389444219,-500.0,0.00013699,2]
[404658850,1770389444228,-500.18822914,0.00013699,2]
[404658851,1770389444237,-500.0,0.00013699,2]
[404658852,1770389444247,-164.53769554,0.00013699,2]
[404658853,1770389444256,-500.0,0.00013699,2]
[404658854,1770389444265,-500.0,0.00013699,2]
[404658855,1770389444275,-500.0,0.00013699,2]
[404658856,1770389444284,-500.0,0.00013699,2]
[404658857,1770389444295,-500.0,0.00013699,2]
[404658858,1770389444304,-500.0,0.00013699,2]
[404658859,1770389444314,-500.0,0.00013699,2]
[404658860,1770389444323,-500.0,0.00013699,2]
[404658861,1770389444333,-500.0,0.00013699,2]
[404658862,1770389444343,-500.0,0.00013699,2]
[404658863,1770389444353,-5132.86,0.000137,2]
[404658864,1770389444365,-5132.86,0.000137,2]
[404658865,1770389444375,-5132.86,0.000137,2]
[404658866,1770389444386,-5132.86,0.000137,2]
[404658867,1770389444396,-5132.86,0.000137,2]
[404658868,1770389444407,-225.79,0.00014212,2]
[404658869,1770389444425,-500.0,0.00014247,2]
[404658870,1770389444441,-500.0,0.00014247,2]
[404658871,1770389444463,-1000.0,0.00014247,2]
[404658872,1770389444473,-1000.0,0.00014247,2]
[404658873,1770389444483,-500.0,0.00014247,2]
[404658874,1770389444493,-1000.0,0.00014247,2]
[404658875,1770389444503,-500.0,0.00014247,2]
[404658876,1770389444513,-500.0,0.00014247,2]
[404658877,1770389444523,-500.0,0.00014247,2]
[404658878,1770389444533,-500.0,0.00014247,2]
[404658879,1770389444542,-500.0,0.00014247,2]
[404658880,1770389444558,-500.0,0.00014247,2]
[404658881,1770389444568,-1000.0,0.00014247,2]
[404658882,1770389444577,-500.0,0.00014247,2]
[404658883,1770389444587,-500.0,0.00014247,2]
[404658884,1770389444596,-500.0,0.00014247,2]
[404658885,1770389444606,-621.1364352,0.00014247,2]
[404658886,1770389444616,-500.0,0.00014247,2]
[404658887,1770389444625,-500.0,0.00014247,2]
[404658888,1770389444635,-500.93151703,0.00014247,2]
[404658889,1770389444645,-500.0,0.00014247,2]
[404658890,1770389444654,-1000.0,0.00014247,2]
[404658891,1770389444664,-501.17265493,0.00014247,2]
[404658892,1770389444674,-500.0,0.00014247,2]
[404658893,1770389444683,-500.0,0.00014247,2]
[404658894,1770389444693,-500.0,0.00014247,2]
[404658895,1770389444708,-500.0,0.00014247,2]
[404658896,1770389444718,-500.80352602,0.00014247,2]
[404658897,1770389444728,-10178.26865368,0.00014287,2]
[404658898,1770389444737,-1252.0,0.00014746,2]
[404658899,1770389444747,-225.79,0.00014758,2]
[404658900,1770389444756,-1500.0,0.00014795,2]
[404658901,1770389444766,-1500.0,0.00014795,2]
[404658902,1770389444777,-1500.0,0.00014795,2]
[404658903,1770389444786,-1500.0,0.00014795,2]
[404658904,1770389444796,-1500.0,0.00014795,2]
[404658905,1770389444805,-3477.63193164,0.00014843,2]
[404658906,1770389444815,-6453.0,0.00014904,2]
[404658907,1770389444824,-10178.26865368,0.0001515,2]
[404658908,1770389444833,-2000.0,0.00015342,2]
[404658909,1770389444843,-446.58829489,0.00015342,2]
[404658910,1770389444852,-2000.0,0.00015342,2]
[404658911,1770389444861,-2000.0,0.00015342,2]
[404658912,1770389444871,-2000.0,0.00015342,2]
[404658913,1770389444880,-200.37901006,0.00015652,2]
[404658914,1770389444889,-5637.27,0.00015885,2]
[404658915,1770389444898,-500.85860802,0.0001589,2]
[404658916,1770389444908,-277.00425691,0.0001589,2]
[404658917,1770389444917,-1001.78199785,0.0001589,2]
[404658918,1770389444927,-2500.0,0.0001589,2]
[404658919,1770389444936,-10178.26865368,0.00016012,2]
[404658920,1770389444945,-391.0,0.00016227,2]
[404658921,1770389444957,-8523.0,0.00016394,2]
[404658922,1770389444966,-500.0,0.00016438,2]
[404658923,1770389444975,-426.49736186,0.00016438,2]
[404658924,1770389444985,-300.0,0.00016438,2]
[404658925,1770389444994,-906.28001714,0.00016438,2]
[404658926,1770389445004,-2251.81221339,0.00016577,2]
[404658927,1770389445013,-151.0,0.00016603,2]
[404658928,1770389445022,-10178.26865368,0.00016875,2]
[404658929,1770389445032,-300.0,0.00017727,2]
[404658930,1770389445041,-666.0,0.00017727,2]
[404658931,1770389445050,-8209.06,0.00017728,2]
[404658932,1770389445059,-10825.66,0.00017728,2]
[404658933,1770389445070,-10178.26865368,0.00017737,2]
[404658934,1770389445079,-208.27642027,0.00017808,2]
[404658935,1770389445089,-500.0,0.000179,2]
[404658936,1770389445098,-354.601863,0.00018219,7]
[404658937,1770389445108,-2251.81221339,0.00018227,2]
[404658938,1770389445118,-173.38141968,0.00018585,2]
[404658939,1770389445128,-479.76195256,0.00018899,2]
[404658940,1770389445138,-479.76195257,0.00018899,2]
[404658941,1770389445147,-194.87348947,0.00019,2]
[404658942,1770389445158,-1733.5259507,0.00019178,2]
[404658943,1770389445168,-264.23912418,0.00019178,2]
[404658944,1770389445177,-479.76195257,0.00019372,2]
[404658945,1770389445187,-3477.63193164,0.00019712,2]
[404658946,1770389445200,-200.0,0.00019719,2]
[404658947,1770389445210,-479.76195257,0.00019844,2]
[404658948,1770389445219,-157.05125962,0.00019914,2]
[404658949,1770389445229,-479.76195257,0.00020317,2]
[404658950,1770389445238,-302.02355,0.00020688,7]
[404658951,1770389445247,-479.76195257,0.00020789,2]
[404658952,1770389445257,-200.37901006,0.00021328,2]
[404658953,1770389445267,-2251.81221339,0.00021529,2]
[404658954,1770389445277,-150.0,0.00022411,2]
[404658955,1770389445287,-180.48850923,0.00022411,2]
[404658956,1770389445296,-150.0,0.00022411,2]
[404658957,1770389445305,-154.47321009,0.00022411,2]
[404658958,1770389445315,-150.0,0.00022411,2]
[404658959,1770389445324,-150.0,0.00022411,2]
[404658960,1770389445333,-150.0,0.00022411,2]
[404658961,1770389445342,-150.0,0.00022411,2]
[404658962,1770389445383,-150.0,0.00022411,2]
[404658963,1770389445392,-150.0,0.00022411,2]
[404658964,1770389445402,-150.0,0.00022411,2]
[404658965,1770389445415,-150.0,0.00022411,2]
[404658966,1770389445425,-150.0,0.00022411,2]
[404658967,1770389445434,-150.0,0.00022411,2]
[404658968,1770389445444,-150.5833019,0.00022411,2]
[404658969,1770389445457,-150.0,0.00022411,2]
[404658970,1770389445467,-159.47617403,0.00022411,2]
[404658971,1770389445477,-9161.23,0.00022466,2]
[404658972,1770389445486,-150.0,0.00022466,2]
[404658973,1770389445496,-150.0,0.00022466,2]
[404658974,1770389445506,-150.0,0.00022466,2]
[404658975,1770389445516,-150.0,0.00022466,2]
[404658976,1770389445526,-150.0,0.00022466,2]
[404658977,1770389445535,-150.0,0.00022466,2]
[404658978,1770389445545,-150.0,0.00022466,2]
[404658979,1770389445555,-150.0,0.00022466,2]
[404658980,1770389445565,-150.0,0.00022466,2]
[404658981,1770389445574,-154.32,0.000225,7]
[404658982,1770389445584,-4744.82,0.000225,2]
[404658983,1770389445593,-200.0,0.00022521,2]
[404658984,1770389445603,-200.0,0.00022521,2]
[404658985,1770389445612,-200.0,0.00022521,2]
[404658986,1770389445623,-200.0,0.00022521,2]
[404658987,1770389445633,-200.0,0.00022521,2]
[404658988,1770389445643,-200.0,0.00022521,2]
[404658989,1770389445653,-200.0,0.00022521,2]
[404658990,1770389445663,-200.0,0.00022521,2]
[404658991,1770389445672,-199.29985758,0.00022521,2]
[404658992,1770389445682,-160.0,0.00023,2]
[404658993,1770389445692,-2251.81221339,0.00023179,2]
[404658994,1770389445705,-251.686292,0.00024449,30]
[404658995,1770389445726,-3477.63193164,0.0002458,2]
[404658996,1770389445735,-2251.81221339,0.0002483,2]
[404658997,1770389445745,-2251.81221339,0.00026481,2]
[404658998,1770389445754,-196.04586936,0.00026996,2]
[404658999,1770389445764,-200.37901006,0.00027005,2]
[404659000,1770389445774,-159.97737619,0.00027014,2]
[404659001,1770389445784,-173.38141968,0.00027068,2]
[404659003,1770389445806,-150.0,0.00027369,2]
[404659005,1770389445827,-2251.81221339,0.00028132,2]
[404659006,1770389445836,-4744.82,0.000282,2]
[404659007,1770389445846,-203.05,0.00028883,14]
[404659008,1770389445857,-3477.63193164,0.00029448,2]
[404659009,1770389445867,-2251.81221339,0.00029782,2]
[404659010,1770389445878,-157.05125963,0.00029871,2]
[404659011,1770389445889,-251.686292,0.00030091,30]
[404659012,1770389445900,-150.24,0.00030519,14]
[404659013,1770389445911,-606.0,0.0003074,2]
[404659014,1770389445922,-2251.81221339,0.00031433,2]
[404659015,1770389445932,-9752.07,0.00031984,2]
[404659016,1770389445942,-200.37901006,0.00032682,2]
[404659017,1770389445956,-2251.81221339,0.00033084,2]
[404659020,1770389445966,-223.16,0.000332,14]
[404659022,1770389445977,-672.25,0.000332,2]
[404659024,1770389445986,-169.32,0.000332,14]
[404659025,1770389445996,-9161.23,0.00033699,2]
[404659026,1770389446005,-4744.82,0.000337,2]
[404659028,1770389446014,-2251.81221339,0.00034735,2]
[404659030,1770389446023,-500.0,0.00035,60]
[404659033,1770389446032,-2412.212,0.00035131,41]
[404659035,1770389446042,-187.271,0.00035131,41]
[404659037,1770389446051,-152.0,0.00035383,3]
[404659039,1770389446060,-3483.0,0.00035515,2]
[404659041,1770389446069,-917.0,0.00035515,2]
[404659043,1770389446079,-1205.0,0.00035515,2]
[404659046,1770389446089,-6582.0,0.00035515,2]
[404659049,1770389446098,-3326.64,0.00035515,2]
[404659051,1770389446107,-173.38141968,0.00035551,8]
[404659053,1770389446117,-154.32,0.000356,14]
[404659054,1770389446126,-2000.0,0.000359,2]
[404659055,1770389446135,-2251.81221339,0.00036385,2]
[404659056,1770389446145,-406.2713,0.00036888,7]
[404659057,1770389446154,-201.349033,0.00037614,60]
[404659058,1770389446163,-1000.0,0.00037841,2]
[404659059,1770389446173,-2251.81221339,0.00038036,2]
[404659060,1770389446183,-797.0,0.00038171,5]
[404659061,1770389446192,-4744.82,0.000382,2]
[404659062,1770389446205,-200.37901006,0.00038358,2]
[404659063,1770389446215,-2236.729,0.00038515,2]
[404659064,1770389446224,-6582.0,0.00038515,2]
[404659065,1770389446233,-3254.0,0.00038515,2]
[404659066,1770389446243,-3656.4418,0.00038888,30]
[404659067,1770389446252,-2000.0,0.000396,2]
[404659068,1770389446262,-672.25,0.000396,30]
[404659069,1770389446271,-2251.81221339,0.00039687,2]
[404659070,1770389446280,-5800.0,0.00039874,14]
[404659071,1770389446288,-5800.0,0.00039882,14]
[404659072,1770389446297,-1473.69,0.00040556,2]
[404659073,1770389446306,-223.16,0.000406,14]
[404659074,1770389446317,-300.0,0.00041068,22]
[404659075,1770389446326,-799.0,0.00041096,120]
[404659076,1770389446335,-518.0,0.00041135,10]
[404659077,1770389446345,-2251.81221339,0.00041337,2]
[404659078,1770389446354,-300.0,0.00041389,30]
[404659079,1770389446363,-675.51296807,0.00041389,30]
[404659080,1770389446372,-41736.3024903,0.0004139,2]
[404659081,1770389446381,-173.2883025,0.0004139,2]
[404659082,1770389446391,-176.678893,0.0004139,120]
[404659083,1770389446400,-151.0,0.0004139,28]
[404659084,1770389446411,-151.0,0.0004139,28]
[404659085,1770389446424,-151.0,0.0004139,120]
[404659086,1770389446440,-151.0,0.0004139,120]
[404659087,1770389446455,-821.058061,0.0004139,120]
[404659088,1770389446464,-821.058061,0.0004139,120]
[404659089,1770389446474,-821.058061,0.0004139,120]
[404659090,1770389446484,-821.058061,0.0004139,120]
[404659091,1770389446493,-187.757563,0.0004139,120]
[404659092,1770389446502,-187.757563,0.0004139,120]
[404659093,1770389446512,-187.757563,0.0004139,120]
[404659094,1770389446521,-187.757563,0.0004139,120]
[404659095,1770389446530,-151.0,0.0004139,120]
[404659096,1770389446539,-245.939486,0.0004139,120]
[404659097,1770389446549,-245.939486,0.0004139,120]
[404659098,1770389446570,-245.939486,0.0004139,120]
[404659099,1770389446589,-245.939486,0.0004139,120]
[404659100,1770389446605,-151.0,0.0004139,120]
[404659101,1770389446614,-151.0,0.0004139,14]
[404659102,1770389446636,-164.1408,0.0004139,120]
[404659103,1770389446647,-151.0,0.0004139,14]
[404659104,1770389446656,-164.1408,0.0004139,120]
[404659105,1770389446669,-164.1408,0.0004139,120]
[404659106,1770389446687,-164.1408,0.0004139,120]
[404659107,1770389446699,-164.096166,0.0004139,120]
[404659108,1770389446711,-164.096166,0.0004139,120]
[404659110,1770389446722,-164.096166,0.0004139,120]
[404659111,1770389446732,-164.096166,0.0004139,120]
[404659113,1770389446742,-6582.0,0.00041515,2]
[404659115,1770389446751,-3254.0,0.00041515,2]
[404659116,1770389446762,-799.0,0.00041644,120]
[404659117,1770389446772,-10408.0,0.000417,117]
[404659118,1770389446784,-4744.82,0.000417,2]
[404659119,1770389446794,-1111.11111,0.0004188,120]
[404659120,1770389446803,-1111.11111,0.0004188,120]
[404659121,1770389446813,-1111.11111,0.0004188,120]
[404659122,1770389446822,-1111.11111,0.0004188,120]
[404659123,1770389446831,-1111.11111,0.0004188,120]
[404659124,1770389446840,-1111.11111,0.0004188,120]
[404659125,1770389446850,-160.0,0.00042,120]
[404659126,1770389446859,-1000.0,0.00042177,30]
[404659127,1770389446868,-799.0,0.00042192,120]
[404659128,1770389446878,-154.32,0.000423,14]
[404659129,1770389446888,-292.3987,0.00042451,120]
[404659130,1770389446897,-1000.0,0.00042451,30]
[404659131,1770389446907,-500.0,0.00042478,60]
[404659132,1770389446916,-500.0,0.00042478,60]
[404659133,1770389446926,-700.0,0.00042478,60]
[404659134,1770389446935,-1000.0,0.00042571,2]
[404659135,1770389446945,-518.0,0.0004269,10]
[404659136,1770389446957,-437.80379207,0.00042695,7]
[404659137,1770389446967,-200.0,0.00042712,2]
[404659138,1770389446976,-1999.0,0.00042725,30]
[404659139,1770389446986,-432.35,0.0004274,120]
[404659140,1770389446995,-200.0,0.00042767,2]
[404659141,1770389447005,-300.0,0.00042771,30]
[404659142,1770389447014,-200.064073,0.00042772,120]
[404659143,1770389447024,-151.0,0.00042772,120]
[404659144,1770389447040,-151.0,0.00042772,120]
[404659145,1770389447061,-230.250236,0.00042772,120]
[404659146,1770389447072,-177.444214,0.00042772,60]
[404659147,1770389447081,-151.0,0.00042772,120]
[404659148,1770389447091,-169.845,0.00042772,120]
[404659149,1770389447101,-169.845,0.00042772,120]
[404659150,1770389447111,-169.845,0.00042772,120]
[404659151,1770389447120,-169.845,0.00042772,120]
[404659152,1770389447129,-151.0,0.00042772,120]
[404659153,1770389447139,-151.0,0.00042772,120]
[404659154,1770389447148,-180.898153,0.00042772,120]
[404659155,1770389447158,-151.0,0.00042772,90]
[404659156,1770389447167,-151.0,0.00042772,90]
[404659157,1770389447178,-151.0,0.00042772,120]
[404659158,1770389447187,-65904.0,0.00042772,30]
[404659159,1770389447197,-160.11222818,0.000429,120]
[404659160,1770389447210,-160.11222815,0.000429,120]
[404659161,1770389447219,-160.11222815,0.000429,120]
[404659162,1770389447235,-160.11222815,0.000429,120]
[404659163,1770389447244,-160.11222815,0.000429,120]
[404659164,1770389447254,-2251.81221339,0.00042988,2]
[404659165,1770389447263,-300.0,0.0004299,30]
[404659166,1770389447272,-25000.0,0.00042991,15]
[404659167,1770389447282,-300.0,0.00042999,30]
[404659168,1770389447291,-1000.0,0.00042999,30]
[404659169,1770389447300,-25000.0,0.00043,15]
[404659170,1770389447310,-8000.0,0.00043,120]
[404659171,1770389447319,-150.0,0.00043,30]
[404659172,1770389447328,-5000.0,0.00043,2]
[404659174,1770389447337,-160.0,0.00043,30]
[404659175,1770389447346,-672.25,0.00043,30]
[404659176,1770389447356,-151.0,0.00043,120]
[404659177,1770389447365,-151.0,0.00043,120]
[404659178,1770389447374,-151.0,0.00043,120]
[404659179,1770389447384,-25000.0,0.00043009,15]
[404659180,1770389447394,-230.0,0.00043014,120]
[404659181,1770389447405,-6710.0124,0.00043016,15]
[404659182,1770389447417,-25000.0,0.00043017,15]
[404659183,1770389447427,-5219.23466694,0.00043018,15]
[404659184,1770389447436,-1000.0,0.00043024,120]
[404659185,1770389447447,-500.0,0.00043026,60]
[404659186,1770389447458,-700.0,0.00043026,60]
[404659187,1770389447468,-200.0,0.00043065,2]
[404659188,1770389447478,-408.7023,0.00043103,120]
[404659189,1770389447490,-4744.82,0.000432,2]
[404659190,1770389447499,-406.4254844,0.00043211,120]
[404659191,1770389447510,-151.0,0.00043213,120]
[404659192,1770389447522,-65904.0,0.00043213,30]
[404659193,1770389447532,-152.43218971,0.0004324,2]
[404659194,1770389447541,-150.0,0.0004327,120]
[404659195,1770389447551,-1000.0,0.00043273,30]
[404659196,1770389447561,-500.0,0.00043287,120]
[404659197,1770389447570,-500.0,0.00043287,120]
[404659198,1770389447580,-500.0,0.00043287,120]
[404659199,1770389447590,-500.0,0.00043287,120]
[404659200,1770389447600,-500.0,0.00043287,120]
[404659201,1770389447610,-500.0,0.00043287,120]
[404659202,1770389447621,-500.0,0.00043287,120]
[404659203,1770389447631,-500.0,0.00043287,120]
[404659204,1770389447642,-500.0,0.00043287,120]
[404659205,1770389447652,-500.0,0.00043287,120]
[404659206,1770389447661,-500.0,0.00043287,120]
[404659207,1770389447671,-228.67041211,0.00043287,120]
[404659208,1770389447681,-363.76929629,0.00043287,120]
[404659209,1770389447690,-457.87,0.00043287,120]
[404659210,1770389447702,-150.0,0.00043287,120]
[404659211,1770389447712,-433.07152904,0.00043287,30]
[404659212,1770389447722,-500.0,0.00043287,120]
[404659213,1770389447732,-500.0,0.00043287,120]
[404659214,1770389447743,-481.048569,0.00043287,120]
[404659215,1770389447751,-1312.11,0.00043287,120]
[404659216,1770389447759,-1312.11,0.00043287,120]
[404659217,1770389447767,-1312.11,0.00043287,120]
[404659218,1770389447775,-1312.11,0.00043287,120]
[404659219,1770389447783,-1312.11,0.00043287,120]
[404659220,1770389447792,-1312.11,0.00043287,120]
[404659221,1770389447800,-1312.11,0.00043287,120]
[404659222,1770389447808,-1312.11,0.00043287,120]
[404659223,1770389447816,-1312.11,0.00043287,120]
[404659224,1770389447825,-1312.11,0.00043287,120]
[404659225,1770389447832,-1312.11,0.00043287,120]
[404659226,1770389447840,-1312.11,0.00043287,120]
[404659227,1770389447848,-1312.11,0.00043287,120]
[404659228,1770389447857,-1312.11,0.00043287,120]
[404659229,1770389447864,-1312.11,0.00043287,120]
[404659230,1770389447873,-1312.11,0.00043287,120]
[404659231,1770389447882,-1312.11,0.00043287,120]
[404659232,1770389447890,-1312.11,0.00043287,120]
[404659233,1770389447898,-1312.11,0.00043287,120]
[404659234,1770389447906,-1312.11,0.00043287,120]
[404659235,1770389447913,-1312.11,0.00043287,120]
[404659236,1770389447920,-1312.11,0.00043287,120]
[404659237,1770389447927,-1312.11,0.00043287,120]
[404659238,1770389447934,-1312.28625067,0.00043287,120]
[404659239,1770389447940,-500.0,0.00043287,120]
[404659240,1770389447950,-512.54993236,0.00043287,120]
[404659241,1770389447960,-277.54370261,0.00043287,120]
[404659242,1770389447969,-582.00611976,0.00043287,120]